bitfinex/quotes_ETHUSD_20240621
["timestamp","ask_amount","ask_price","bid_price","bid_amount"]
[1718996178331,0.005,3518.4,3518.1,2.27394]
[1718996178492,0.005,3518.4,3518.2,2.27387]
[1718996178987,0.005,3518.4,3518.0,4.494363]
[1718996179897,0.005,3518.4,3518.1,2.27395]
[1718996180694,0.005,3518.4,3518.2,2.27388]
[1718996183497,0.005,3518.4,3518.0,0.120403]
[1718996184813,0.005,3518.4,3518.0,2.394413]
[1718996185233,0.005,3518.4,3518.1,2.27389]
[1718996185596,0.005,3518.4,3518.2,2.27389]
[1718996186543,0.005,3518.4,3518.3,2.27382]
[1718996186707,0.005,3518.4,3518.1,2.27395]
[1718996186909,0.005,3518.4,3518.2,2.27388]
[1718996187603,0.005,3518.4,3518.3,2.27382]
[1718996188000,0.005,3518.4,3518.3,4.54764]
[1718996188347,0.005,3518.4,3518.3,9.14908]
[1718996188847,0.1204033,3518.9,3518.8,6.8205]
[1718996189001,0.1204033,3518.9,3518.8,11.194]
[1718996191037,0.1204033,3518.9,3518.8,8.9205]
[1718996193113,0.1204033,3518.9,3518.8,4.3735]
[1718996193335,0.1204033,3518.9,3518.8,4.547]
[1718996193545,0.1204033,3518.9,3518.8,2.2735]
[1718996194029,0.1204033,3518.9,3518.8,4.547]
[1718996195451,0.1204033,3518.9,3518.8,2.2735]
[1718996196647,0.1204033,3518.9,3518.8,4.547]
[1718996197436,0.1204033,3518.9,3518.8,2.2735]
[1718996197638,0.1204033,3518.9,3518.8,4.547]
[1718996199447,0.1204033,3518.9,3518.8,2.2735]
[1718996201251,0.1204033,3518.9,3518.7,2.27356]
[1718996201458,0.1204033,3518.9,3517.8,9.8288]
[1718996201748,2.4222033,3518.9,3518.3,2.27381]
[1718996201923,0.24222033,3518.8,3518.1,4.54781]
[1718996202123,0.24222033,3518.8,3518.1,2.27389]
[1718996202322,0.24222033,3518.8,3518.2,2.27383]
[1718996204335,0.24222033,3518.8,3518.0,4.494353]
[1718996204652,0.24222033,3518.8,3518.0,4.494413]
[1718996204858,0.24222033,3518.8,3518.1,2.27395]
[1718996205455,0.24222033,3518.8,3518.2,2.27388]
[1718996206019,0.24222033,3518.8,3518.1,2.27394]
[1718996206545,0.24222033,3518.8,3518.0,4.494413]
[1718996206546,0.24222033,3518.8,3518.2,2.27388]
[1718996206914,0.1204033,3518.9,3518.5,2.27363]
[1718996207566,0.1204033,3518.9,3518.6,2.27362]
[1718996208283,0.1204033,3518.9,3518.8,2.2735]
[1718996209837,0.1204033,3518.9,3518.6,2.27357]
[1718996210047,0.1204033,3518.9,3518.7,2.27356]
[1718996210245,0.1204033,3518.9,3518.6,2.27362]
[1718996210644,0.1204033,3518.9,3518.0,2.394413]
[1718996210645,0.1204033,3518.9,3518.8,2.2735]
[1718996211828,0.1204033,3518.9,3518.8,4.547]
[1718996212824,0.1204033,3518.9,3518.8,2.2735]
[1718996213048,0.1204033,3518.9,3518.8,4.547]
[1718996213357,0.1204033,3518.9,3518.8,2.2735]
[1718996213722,0.1204033,3518.9,3518.2,2.27382]
[1718996213939,2.2962,3518.8,3518.0,0.120403]
[1718996214141,2.2962,3518.8,3518.0,2.394413]
[1718996214142,0.24166033,3518.7,3518.0,2.394413]
[1718996214323,0.24166033,3518.7,3518.1,2.27395]
[1718996215226,0.24166033,3518.7,3518.0,2.394413]
[1718996215628,0.24166033,3518.7,3518.0,0.120403]
[1718996215831,0.24166033,3518.7,3518.0,2.394403]
[1718996216240,0.24166033,3518.7,3518.1,2.27394]
[1718996219159,0.1204033,3518.9,3518.3,2.27382]
[1718996219378,0.1204033,3518.9,3518.4,0.05634055]
[1718996219582,0.1204033,3518.9,3518.8,4.547]
[1718996220688,0.1204033,3518.9,3518.8,6.8205]
[1718996222195,0.005,3519.5,3519.0,2.27333]
[1718996222393,0.005,3519.5,3519.4,2.27311]
[1718996223903,0.005,3519.5,3519.3,2.27317]
[1718996224193,2.4006,3520.0,3519.2,2.27324]
[1718996224587,2.4006,3520.0,3519.2,2.27322]
[1718996224783,0.24056,3519.9,3519.2,2.27322]
[1718996225157,0.24056,3519.9,3519.3,2.27317]
[1718996225693,0.24056,3519.9,3519.4,2.27307]
[1718996226666,2.4006,3520.0,3519.4,2.27307]
[1718996227067,2.4006,3520.0,3519.1,2.2733]
[1718996228923,2.4006,3520.0,3519.4,2.27311]
[1718996229066,2.3506,3520.0,3519.5,0.05682242]
[1718996229621,2.3506,3520.0,3519.2,2.27318]
[1718996230207,2.3506,3520.0,3519.5,2.27298]
[1718996230690,2.3506,3520.0,3519.6,2.27298]
[1718996231327,2.58616,3520.0,3519.3,2.27311]
[1718996231536,2.58616,3520.0,3519.4,2.27309]
[1718996232605,2.58616,3520.0,3519.2,2.27318]
[1718996232795,0.259116,3519.9,3519.2,2.27318]
[1718996233998,0.259116,3519.9,3518.6,2.1]
[1718996234581,0.259116,3519.9,3518.9,2.27343]
[1718996234777,0.259116,3519.9,3519.1,2.27329]
[1718996235023,0.259116,3519.9,3519.2,2.2732]
[1718996235731,0.259116,3519.9,3519.1,2.2733]
[1718996236218,2.3506,3520.0,3518.6,2.1]
[1718996236219,0.2609716,3519.8,3518.6,2.1]
[1718996236425,0.2609716,3519.8,3518.6,4.37357]
[1718996236590,0.2609716,3519.8,3518.8,2.27348]
[1718996237406,2.3042,3520.5,3518.9,2.4511]
[1718996237724,2.3042,3520.5,3519.4,2.2731]
[1718996238621,1.9762,3520.5,3519.0,2.1]
[1718996238824,1.9762,3520.5,3519.2,2.27323]
[1718996239124,1.9762,3520.5,3519.0,2.1]
[1718996239125,1.9762,3520.5,3519.7,2.27291]
[1718996239613,1.9762,3520.5,3519.7,2.27288]
[1718996239831,1.9762,3520.5,3519.8,2.27279]
[1718996242303,2.4866,3520.9,3520.1,2.27262]
[1718996243306,2.4866,3520.9,3519.7,2.27286]
[1718996243708,2.4866,3520.9,3519.9,2.27277]
[1718996244348,0.005,3521.1,3521.0,2.27208]
[1718996244559,1.49472726,3524.1,3521.0,2.27208]
[1718996244560,2.1,3523.6,3521.0,4.5126]
[1718996244866,2.2955,3522.5,3521.4,2.27179]
[1718996245058,2.2955,3522.5,3521.0,2.27206]
[1718996245217,2.2955,3522.5,3520.8,2.2722]
[1718996245417,0.24070413,3523.5,3520.8,2.2722]
[1718996245418,2.4421,3522.9,3521.2,2.27188]
[1718996245619,2.4421,3522.9,3521.5,2.27175]
[1718996245831,2.4421,3522.9,3521.8,2.27155]
[1718996246747,2.4421,3522.9,3521.3,2.27185]
[1718996246928,2.4421,3522.9,3521.1,2.1]
[1718996246929,2.4421,3522.9,3521.6,2.27168]
[1718996247513,2.4421,3522.9,3521.3,2.27184]
[1718996247514,2.1,3522.9,3521.4,2.27176]
[1718996247853,2.4655,3522.3,3521.8,2.27154]
[1718996248072,2.2657,3523.1,3522.2,2.27127]
[1718996248929,2.2657,3523.1,3522.2,4.54256]
[1718996249464,2.2657,3523.1,3522.2,2.27127]
[1718996250417,2.2657,3523.1,3522.2,4.54257]
[1718996251027,2.2657,3523.1,3522.3,2.27124]
[1718996252967,2.2657,3523.1,3522.3,4.54248]
[1718996253653,2.2657,3523.1,3522.3,2.27124]
[1718996257248,2.2657,3523.1,3522.1,2.27131]
[1718996258053,2.2657,3523.1,3521.0,2.81294928]
[1718996258280,2.2657,3523.1,3520.8,12.13]
[1718996258281,2.3203,3522.3,3521.3,2.27188]
[1718996258437,0.24407033,3522.2,3521.3,2.27188]
[1718996258638,0.24407033,3522.2,3521.4,2.27179]
[1718996258840,0.24407033,3522.2,3521.1,2.27195]
[1718996259146,0.24407033,3522.2,3521.1,2.1]
[1718996259349,0.26847736,3522.1,3521.2,2.27194]
[1718996259583,0.26847736,3522.1,3521.4,2.27179]
[1718996259949,0.26847736,3522.1,3521.5,2.27174]
[1718996260677,0.26847736,3522.1,3521.4,2.27181]
[1718996260840,0.26847736,3522.1,3521.2,4.3719]
[1718996261571,0.26847736,3522.1,3521.5,2.27175]
[1718996262545,2.3203,3522.3,3521.6,2.27169]
[1718996263072,2.3203,3522.3,3521.5,2.27171]
[1718996263236,2.3203,3522.3,3521.3,2.27184]
[1718996263440,2.3203,3522.3,3521.4,2.27181]
[1718996263676,2.3203,3522.3,3521.6,2.27169]
[1718996263854,2.56437033,3522.3,3521.6,2.27169]
[1718996264261,2.4789,3522.7,3521.6,4.37164]
[1718996264643,2.4789,3522.7,3521.7,0.04401183]
[1718996264846,2.4789,3522.7,3522.1,2.27134]
[1718996265777,2.1,3524.0,3522.2,2.27127]
[1718996265778,2.3962,3523.1,3522.2,2.27127]
[1718996266291,2.3962,3523.1,3522.1,2.27135]
[1718996266459,0.01367293,3522.4,3522.3,2.27124]
[1718996266986,0.01367293,3522.4,3522.0,4.37139]
[1718996266987,2.42607293,3522.4,3521.6,2.27164]
[1718996267193,2.42607293,3522.4,3521.8,2.27154]
[1718996267363,2.42607293,3522.4,3521.9,2.27144]
[1718996267860,2.42607293,3522.4,3521.8,2.27156]
[1718996268175,2.42607293,3522.4,3521.5,2.27175]
[1718996268371,2.42607293,3522.4,3521.4,2.1]
[1718996268718,2.66868022,3522.4,3521.4,4.37181]
[1718996268881,2.66868022,3522.4,3521.6,2.27169]
[1718996269187,2.66868022,3522.4,3521.4,4.37181]
[1718996269897,2.66868022,3522.4,3521.6,2.27169]
[1718996270076,2.42607293,3522.4,3521.6,2.27169]
[1718996270286,2.42607293,3522.4,3521.4,2.1]
[1718996270667,2.42607293,3522.4,3521.0,1.137592]
[1718996270971,2.42607293,3522.4,3521.3,2.27183]
[1718996271884,2.42607293,3522.4,3521.1,2.27201]
[1718996272086,2.66868022,3522.4,3521.1,2.27201]
[1718996272302,2.66868022,3522.4,3521.0,4.37208]
[1718996272594,2.66868022,3522.4,3521.1,2.27201]
[1718996272959,2.66868022,3522.4,3520.8,2.27218]
[1718996273264,2.66868022,3522.4,3520.9,2.27213]
[1718996273490,0.26686802,3522.3,3520.9,2.27213]
[1718996273662,2.42607293,3522.4,3520.9,2.27213]
[1718996273663,2.35994095,3522.4,3520.9,2.27213]
[1718996273864,2.35994095,3522.4,3521.0,2.27208]
[1718996274062,2.35994095,3522.4,3521.0,0.0567938]
[1718996274475,2.35994095,3522.4,3521.0,2.3288638]
[1718996274796,0.2359941,3522.3,3521.0,0.0567938]
[1718996275268,0.2359941,3522.3,3521.1,2.272]
[1718996275472,0.2359941,3522.3,3521.2,0.05678847]
[1718996275673,0.2359941,3522.3,3521.3,0.05678685]
[1718996276060,0.2359941,3522.3,3521.0,2.27207]
[1718996276284,0.25959351,3522.2,3521.0,2.27207]
[1718996276787,0.25959351,3522.2,3520.9,2.27213]
[1718996276956,2.4758,3522.1,3520.8,4.3722]
[1718996277156,2.4758,3522.1,3520.9,2.27213]
[1718996277389,2.4758,3522.1,3520.6,10.677714]
[1718996277698,2.4758,3522.1,3520.6,9.54]
[1718996277996,3.0,3523.0,3521.1,2.27196]
[1718996277997,2.4758,3522.9,3521.1,2.27196]
[1718996278172,0.54758,3522.8,3521.1,2.27196]
[1718996278356,0.54758,3522.8,3521.2,2.27194]
[1718996278357,3.0,3522.8,3521.2,2.27194]
[1718996278767,2.4758,3522.9,3521.2,2.27194]
[1718996279158,2.4758,3522.9,3521.1,2.27201]
[1718996279708,2.4758,3522.9,3521.0,2.1]
[1718996280006,2.4758,3522.7,3521.0,2.1]
[1718996280156,2.4758,3522.6,3521.0,2.1]
[1718996280360,2.4758,3522.6,3520.7,2.27227]
[1718996280588,2.4758,3522.6,3520.7,2.27221]
[1718996280753,2.4758,3522.6,3520.8,2.27218]
[1718996280957,2.4758,3522.4,3520.9,2.2721]
[1718996281193,2.4758,3522.4,3521.2,2.27195]
[1718996281495,2.4758,3522.4,3521.7,2.27162]
[1718996281694,2.4758,3522.4,3521.8,0.05678081]
[1718996282274,2.4758,3522.4,3521.4,2.1]
[1718996282493,2.4758,3522.4,3521.5,2.27171]
[1718996282782,2.4758,3522.4,3521.4,4.37176]
[1718996282997,2.4758,3522.4,3521.6,2.27167]
[1718996283500,2.4758,3522.4,3521.7,0.05678353]
[1718996283999,2.4758,3522.4,3521.3,2.27187]
[1718996284498,2.4758,3522.4,3521.4,2.2718]
[1718996284792,2.4758,3522.4,3521.5,2.27175]
[1718996285094,2.4758,3522.4,3521.4,2.27182]
[1718996285677,2.4758,3522.4,3521.3,2.27187]
[1718996287100,2.4758,3522.4,3521.1,4.57696]
[1718996287395,2.4758,3522.4,3521.1,2.305]
[1718996287581,2.4758,3522.4,3521.3,2.27186]
[1718996288600,2.4758,3522.4,3521.5,2.27175]
[1718996289009,2.4758,3522.4,3521.4,2.27181]
[1718996289507,2.4758,3522.4,3521.3,2.27187]
[1718996292075,2.4758,3522.4,3521.4,2.27182]
[1718996292496,2.4758,3522.4,3521.4,4.54358]
[1718996292690,2.31736717,3524.1,3522.4,2.27113]
[1718996293008,2.2679,3524.1,3522.4,2.27117]
[1718996293185,2.2679,3524.1,3522.1,2.72835082]
[1718996293377,2.2679,3524.1,3522.8,2.27091]
[1718996293774,2.2679,3524.1,3522.6,2.27102]
[1718996294330,2.2679,3524.1,3522.7,2.27094]
[1718996294677,2.2679,3524.1,3522.5,2.27109]
[1718996294873,0.43679,3524.0,3522.9,2.27079]
[1718996295109,0.43679,3524.0,3522.8,2.27091]
[1718996295309,0.43679,3524.0,3522.7,2.27098]
[1718996295691,0.43679,3524.0,3522.7,2.27092]
[1718996295890,0.43679,3524.0,3522.8,2.27091]
[1718996296618,2.2679,3524.1,3522.9,2.2708]
[1718996297488,2.2679,3524.1,3522.8,2.27091]
[1718996298283,2.2679,3524.1,3522.4,2.1]
[1718996298489,2.2679,3524.1,3522.5,0.01853885]
[1718996298686,2.2679,3524.1,3522.7,2.27092]
[1718996298915,2.49469,3524.1,3522.8,2.27091]
[1718996299112,2.49469,3524.1,3522.7,2.27098]
[1718996299385,2.49469,3524.1,3522.4,4.37117]
[1718996299613,2.49469,3524.1,3522.7,2.27097]
[1718996299829,2.49469,3524.1,3522.8,2.32761029]
[1718996300325,2.2679,3524.1,3522.9,2.27079]
[1718996300493,2.2679,3524.1,3523.0,2.27079]
[1718996300941,2.2679,3524.1,3522.8,4.37091]
[1718996301099,2.2679,3524.1,3522.8,2.1]
[1718996301441,0.22679,3524.0,3522.6,2.27104]
[1718996301602,2.4161,3523.9,3522.7,2.27095]
[1718996301931,2.4161,3523.9,3522.4,2.1]
[1718996301932,2.4161,3523.9,3522.8,2.2709]
[1718996304497,2.4161,3523.9,3522.9,2.27085]
[1718996305538,2.4161,3523.9,3522.8,2.27091]
[1718996305896,2.4161,3523.9,3522.8,2.27088]
[1718996306096,2.4161,3523.9,3523.0,2.27075]
[1718996306299,2.4161,3523.9,3523.1,2.27071]
[1718996307393,2.4161,3523.9,3522.9,2.27085]
[1718996308426,2.4161,3523.9,3523.1,2.27072]
[1718996309749,3.0,3524.6,3523.1,2.27072]
[1718996309750,2.3481,3525.7,3524.1,2.27004]
[1718996309897,2.3481,3525.7,3524.2,2.1]
[1718996310235,2.59495033,3525.7,3524.2,2.1]
[1718996310605,2.59495033,3525.7,3524.3,2.26991]
[1718996310937,2.59495033,3525.7,3524.2,2.1]
[1718996310938,2.59495033,3525.7,3524.2,4.37001]
[1718996311101,2.2778,3525.6,3523.5,7.44]
[1718996311302,2.57419514,3525.6,3523.6,2.2704]
[1718996311542,2.57419514,3525.6,3523.7,2.27032]
[1718996311714,2.57419514,3525.6,3523.5,9.71046]
[1718996311715,2.57419514,3525.6,3523.5,7.44]
[1718996311914,2.57419514,3525.6,3523.6,4.54078]
[1718996312113,2.57419514,3525.6,3523.7,2.3270679]
[1718996312114,2.3877,3525.4,3523.7,2.3270679]
[1718996312330,2.3877,3525.4,3523.8,0.05674786]
[1718996312647,2.3877,3525.3,3523.5,7.44]
[1718996312798,2.3877,3525.1,3523.5,7.44]
[1718996312996,2.1,3525.3,3523.4,2.2811]
[1718996313244,2.3877,3525.7,3524.2,2.27]
[1718996313921,2.3877,3525.7,3524.0,4.37008]
[1718996313922,5.3877,3525.7,3524.1,2.27007]
[1718996314132,2.3877,3525.7,3524.1,2.27007]
[1718996314438,2.3877,3525.7,3524.2,2.27001]
[1718996314645,2.3877,3525.7,3524.1,2.27007]
[1718996314802,0.55081033,3525.6,3524.1,2.27007]
[1718996315002,0.55081033,3525.6,3524.0,2.1]
[1718996315003,3.55081033,3525.6,3524.0,2.1]
[1718996315201,3.55081033,3525.6,3524.1,2.27007]
[1718996315202,2.3545,3525.5,3524.1,2.27007]
[1718996316515,2.3545,3525.5,3524.2,2.27001]
[1718996316814,2.3545,3525.5,3524.3,0.03142289]
[1718996317018,2.3545,3525.5,3524.3,2.30135289]
[1718996317215,2.3545,3525.5,3524.3,2.26993]
[1718996317625,0.1204033,3525.9,3524.4,2.1]
[1718996317829,0.1204033,3525.9,3524.6,2.2697]
[1718996318345,0.1204033,3525.9,3524.6,2.26975]
[1718996318828,0.1204033,3525.9,3524.8,2.26962]
[1718996319152,0.1204033,3525.9,3525.4,2.1]
[1718996319363,0.1204033,3525.9,3525.4,4.36924]
[1718996319652,0.1204033,3525.9,3525.5,0.05672013]
[1718996320022,0.1204033,3525.9,3525.5,2.32589013]
[1718996320266,0.1204033,3525.9,3524.9,2.3333]
[1718996320413,0.1204033,3525.9,3525.6,2.2691]
[1718996320621,0.1204033,3525.9,3525.7,2.26905]
[1718996321046,0.1204033,3525.9,3525.5,2.26914]
[1718996321249,0.1204033,3525.9,3524.9,5.65109722]
[1718996321454,0.1204033,3525.9,3525.5,2.26917]
[1718996321753,0.1204033,3525.9,3525.4,2.26919]
[1718996321924,0.1204033,3525.9,3525.0,2.26947]
[1718996322116,0.1204033,3525.9,3524.5,3.0]
[1718996322314,0.1204033,3525.9,3524.5,2.26981]
[1718996322522,0.1204033,3525.9,3524.6,2.26973]
[1718996323037,0.1204033,3525.9,3524.5,2.2698]
[1718996323240,0.1204033,3525.9,3524.4,4.36987]
[1718996323469,2.3785,3525.8,3524.5,2.26981]
[1718996323828,2.3785,3525.8,3524.2,2.27]
[1718996324043,2.3785,3525.8,3524.3,2.26994]
[1718996325036,2.3785,3525.8,3524.1,2.27007]
[1718996325341,2.3785,3525.8,3524.2,4.36995]
[1718996325522,2.3785,3525.8,3524.3,2.26995]
[1718996325956,2.3785,3525.8,3523.9,2.2702]
[1718996326195,2.3785,3525.8,3524.1,2.27007]
[1718996326352,2.3785,3525.8,3524.0,2.27008]
[1718996326656,2.3785,3525.8,3524.6,2.26974]
[1718996327065,2.3785,3525.8,3524.7,2.26969]
[1718996327226,2.3785,3525.8,3524.3,2.26992]
[1718996327424,2.3785,3525.8,3524.5,2.26976]
[1718996328246,2.3785,3525.8,3523.9,7.44]
[1718996328568,2.3785,3525.8,3524.2,2.27]
[1718996330063,0.1204033,3525.9,3524.0,6.406744]
[1718996330064,0.1204033,3525.9,3525.8,2.26898]
[1718996330268,0.1204033,3525.9,3525.8,7.31746317]
[1718996330589,0.00170069,3528.0,3525.9,0.75554362]
[1718996330790,0.00170069,3528.0,3526.7,2.2684]
[1718996331092,0.00170069,3528.0,3526.8,2.2683]
[1718996331411,0.00170069,3528.0,3527.2,2.26808]
[1718996331555,0.00170069,3528.0,3527.4,2.2679]
[1718996331753,0.00170069,3528.0,3527.9,2.26763]
[1718996332069,0.00170069,3528.0,3527.8,2.2677]
[1718996332987,0.00170069,3528.0,3527.4,2.1]
[1718996333193,0.00170069,3528.0,3527.7,2.26774]
[1718996333498,0.00170069,3528.0,3527.6,2.26776]
[1718996333654,0.00170069,3528.0,3527.7,2.26775]
[1718996333857,0.00170069,3528.0,3527.0,2.26818]
[1718996334052,0.00170069,3528.0,3527.5,2.26788]
[1718996334301,0.00170069,3528.0,3527.6,2.26781]
[1718996334957,0.00170069,3528.0,3526.9,5.1]
[1718996335261,0.00170069,3528.0,3527.8,2.26767]
[1718996335653,0.00170069,3528.0,3527.6,2.2678]
[1718996335853,0.00170069,3528.0,3527.7,2.26775]
[1718996336058,0.00170069,3528.0,3527.8,4.53535]
[1718996336490,0.00170069,3528.0,3527.7,2.26775]
[1718996336797,0.00170069,3528.0,3527.9,2.26763]
[1718996337295,0.00170069,3528.0,3527.8,2.26769]
[1718996337664,0.00170069,3528.0,3527.7,2.26775]
[1718996337869,0.00170069,3528.0,3527.8,2.26769]
[1718996339084,0.00170069,3528.0,3527.8,4.53538]
[1718996339590,0.00170069,3528.0,3527.8,6.80307]
[1718996340496,0.31428855,3528.9,3528.1,2.2675]
[1718996340799,0.31428855,3528.9,3528.4,2.2673]
[1718996341154,0.31428855,3528.9,3528.1,2.2675]
[1718996342855,0.31428855,3528.9,3528.3,2.26737]
[1718996343059,0.26428855,3528.9,3528.3,2.26737]
[1718996343769,0.26428855,3528.9,3528.3,2.26736]
[1718996344091,0.26428855,3528.9,3528.4,2.26731]
[1718996344396,0.26428855,3528.9,3528.8,6.80115]
[1718996344560,0.1204033,3529.4,3529.3,2.26673]
[1718996344762,0.1204033,3529.4,3529.3,6.68872533]
[1718996344961,0.1204033,3529.4,3529.3,9.68872533]
[1718996345162,0.1204033,3529.4,3529.3,11.39772533]
[1718996345397,0.1204033,3529.4,3529.3,9.68872533]
[1718996345801,2.3551,3531.6,3530.0,2.26624]
[1718996345971,2.3551,3531.6,3529.8,2.26636]
[1718996346171,2.3551,3531.6,3529.6,2.26651]
[1718996346172,2.3551,3531.6,3530.0,2.26628]
[1718996346361,2.3551,3531.6,3529.8,2.26639]
[1718996346567,2.3551,3531.6,3529.7,2.26647]
[1718996346805,0.44551,3531.5,3529.9,2.26635]
[1718996347113,2.1,3531.1,3529.3,5.26673]
[1718996347263,2.1,3531.1,3529.4,2.26667]
[1718996347468,2.3956,3531.4,3529.2,5.26677]
[1718996347671,2.33956,3531.3,3529.2,5.26677]
[1718996347895,2.33956,3531.3,3529.7,2.26644]
[1718996348106,2.33956,3531.3,3529.0,3.0]
[1718996348107,0.23956,3531.3,3529.0,3.0]
[1718996348309,0.23956,3531.3,3529.4,2.26661]
[1718996348470,0.263516,3531.2,3529.3,2.26673]
[1718996348670,2.4517,3531.1,3529.4,2.26667]
[1718996348866,2.4517,3531.1,3529.1,2.26685]
[1718996349071,0.2954776,3531.0,3528.6,2.1]
[1718996349510,0.2954776,3531.0,3529.4,2.26665]
[1718996350010,0.2954776,3531.0,3529.2,2.26678]
[1718996350383,0.2954776,3531.0,3529.0,3.0]
[1718996350727,0.48471776,3530.9,3529.2,2.26679]
[1718996350871,0.48471776,3530.9,3529.0,2.26692]
[1718996351074,0.48471776,3530.9,3529.1,2.26686]
[1718996351293,0.83318954,3530.8,3529.1,2.26686]
[1718996351491,2.2512,3530.7,3528.9,2.26698]
[1718996351820,2.2512,3530.7,3528.5,3.0]
[1718996352109,2.2512,3530.0,3528.0,2.26756]
[1718996352312,2.2512,3530.0,3528.1,2.26749]
[1718996353004,2.2512,3530.0,3527.9,3.403025]
[1718996353005,5.2512,3530.0,3528.0,2.26757]
[1718996353213,0.52512,3529.9,3528.0,2.26757]
[1718996353907,0.52512,3529.9,3528.1,2.26749]
[1718996354205,0.52512,3529.9,3527.9,3.402965]
[1718996354376,2.1,3529.7,3527.8,2.2677]
[1718996354577,2.3947,3529.6,3527.9,2.26763]
[1718996354972,2.3947,3529.6,3527.8,2.2677]
[1718996355490,2.2904,3529.5,3527.4,9.70791]
[1718996355689,2.2904,3529.5,3527.4,3.40342]
[1718996355690,2.7976332,3529.5,3527.4,3.40342]
[1718996356381,2.7976332,3529.5,3527.4,1.13551]
[1718996356619,2.2904,3529.3,3527.1,2.26811]
[1718996356820,2.2904,3529.3,3527.7,2.26776]
[1718996356985,2.2904,3529.3,3527.5,2.26789]
[1718996357305,2.2904,3529.3,3527.3,2.26797]
[1718996357608,2.2904,3529.3,3527.0,3.97721]
[1718996357609,0.66555965,3529.2,3527.0,3.97721]
[1718996357769,0.66555965,3529.2,3526.7,3.403886]
[1718996357770,0.66555965,3529.2,3527.1,2.26813]
[1718996357978,0.66555965,3529.2,3527.7,2.26775]
[1718996358170,0.66555965,3529.2,3527.2,0.55]
[1718996358171,0.66555965,3529.2,3526.9,5.782]
[1718996358485,0.66555965,3529.2,3526.3,1.00776134]
[1718996358486,2.2554,3529.1,3526.3,6.27640134]
[1718996358693,2.2554,3529.1,3527.6,2.26776]
[1718996359220,2.2554,3529.1,3526.9,2.26827]
[1718996359378,2.2554,3529.1,3527.3,2.268]
[1718996359577,0.22554,3529.0,3527.4,2.2679]
[1718996359772,0.22554,3529.0,3527.5,2.26787]
[1718996359994,2.2554,3529.9,3527.6,4.1797]
[1718996360194,2.2554,3529.9,3528.8,2.26705]
[1718996360607,2.2554,3529.9,3528.9,2.26699]
[1718996360783,0.22554,3529.8,3528.9,2.26699]
[1718996361237,0.22554,3529.8,3528.4,2.26725]
[1718996361412,0.22554,3529.8,3528.0,2.26751]
[1718996361688,0.22554,3529.8,3527.8,2.26767]
[1718996361900,0.22554,3529.8,3528.2,2.26744]
[1718996362109,0.526294,3529.7,3528.2,2.26742]
[1718996362310,0.526294,3529.7,3528.1,2.2675]
[1718996362679,0.526294,3529.7,3528.0,2.26755]
[1718996362987,0.526294,3529.7,3528.1,2.2675]
[1718996363383,0.526294,3529.7,3527.9,2.26762]
[1718996363621,2.2613,3529.5,3528.0,2.26756]
[1718996363826,2.2613,3529.5,3526.9,3.29001134]
[1718996364130,2.2613,3529.5,3527.8,2.26769]
[1718996364419,2.2613,3529.5,3527.6,2.26782]
[1718996364828,2.2613,3529.4,3527.6,2.26782]
[1718996365120,0.3007234,3529.6,3526.9,2.26826]
[1718996365121,2.2613,3528.9,3526.9,2.26826]
[1718996365323,2.2613,3528.9,3527.4,2.26794]
[1718996365509,2.2613,3528.9,3527.2,2.26806]
[1718996365710,2.2613,3528.9,3526.6,4.60396]
[1718996365711,2.2613,3528.9,3527.4,2.26792]
[1718996366533,2.2613,3528.9,3527.5,2.26788]
[1718996366694,0.50433,3528.8,3527.4,2.26795]
[1718996367703,0.50433,3528.8,3527.5,2.26785]
[1718996367904,2.2613,3528.9,3527.5,2.26785]
[1718996369339,2.2613,3528.9,3527.3,2.26801]
[1718996370309,2.2613,3528.9,3527.2,2.26808]
[1718996370501,2.2613,3528.9,3526.8,2.26833]
[1718996370706,2.4059574,3528.5,3526.7,3.5034031]
[1718996370937,0.51879574,3528.4,3526.7,2.3678571]
[1718996371139,0.51879574,3528.4,3526.9,2.26826]
[1718996371507,0.51879574,3528.4,3527.1,2.2681]
[1718996371717,2.4059574,3528.5,3527.1,2.26814]
[1718996372445,2.4059574,3528.5,3526.9,2.26827]
[1718996372446,2.4059574,3528.5,3527.6,2.26781]
[1718996372652,2.782,3529.4,3527.6,2.2678]
[1718996372836,2.782,3529.4,3527.7,0.05661607]
[1718996373006,2.782,3529.4,3527.8,2.26766]
[1718996373341,2.782,3529.4,3528.1,2.2675]
[1718996373555,0.2782,3529.3,3528.1,2.2675]
[1718996374046,2.3763,3529.2,3528.2,2.26739]
[1718996374420,2.3763,3529.2,3528.0,2.26757]
[1718996374602,2.3763,3529.2,3528.1,2.26749]
[1718996374944,2.3763,3529.2,3528.2,2.26743]
[1718996375367,2.3763,3529.2,3528.0,2.26757]
[1718996375543,2.3763,3529.2,3528.0,2.26756]
[1718996376157,2.3763,3529.2,3527.4,1.709]
[1718996376466,2.3763,3529.2,3528.1,2.2675]
[1718996376665,2.3763,3529.2,3527.7,1.709]
[1718996376829,2.3763,3529.2,3528.2,2.26744]
[1718996377163,2.3763,3529.2,3528.1,2.2675]
[1718996377729,2.086,3529.1,3528.1,2.2675]
[1718996378124,2.3763,3529.2,3528.1,2.2675]
[1718996378329,2.3763,3529.2,3527.6,3.97681]
[1718996378330,2.086,3529.0,3528.0,2.26752]
[1718996379239,2.086,3529.0,3527.1,7.44]
[1718996379579,2.3619,3528.9,3527.3,2.26801]
[1718996379868,2.086,3528.2,3527.2,2.26808]
[1718996380160,2.3619,3528.9,3527.9,2.26763]
[1718996380365,4.4479,3528.9,3527.9,2.26763]
[1718996380732,2.3619,3528.9,3528.1,2.26749]